fUSD/lending_fUSD_20251115
["ID","MTS","AMOUNT","RATE_DAILY","PERIOD"]
[394043962,1763220328593,-1000.0,0.00041322,120]
[394043963,1763220328614,-1000.0,0.00041322,120]
[394043964,1763220328635,-1000.0,0.00041322,120]
[394043965,1763220328655,-1000.0,0.00041322,120]
[394043966,1763220328677,-1000.0,0.00041322,120]
[394043967,1763220328698,-1000.0,0.00041322,120]
[394043968,1763220328720,-1000.0,0.00041322,120]
[394043969,1763220328741,-1000.0,0.00041322,120]
[394043970,1763220328767,-1000.0,0.00041322,120]
[394043971,1763220328789,-1000.0,0.00041322,120]
[394043972,1763220328810,-1000.0,0.00041322,120]
[394043973,1763220328830,-1000.0,0.00041322,120]
[394043974,1763220328852,-1000.0,0.00041322,120]
[394043975,1763220328873,-1000.0,0.00041322,120]
[394043976,1763220328894,-1000.0,0.00041322,120]
[394043977,1763220328915,-1000.0,0.00041322,120]
[394043978,1763220328936,-1000.0,0.00041322,120]
[394043979,1763220328957,-1000.0,0.00041322,120]
[394043980,1763220328981,-1000.0,0.00041322,120]
[394043981,1763220329004,-1000.0,0.00041322,120]
[394043982,1763220329026,-1000.0,0.00041322,120]
[394043983,1763220329048,-1000.0,0.00041322,120]
[394043984,1763220329073,-1000.0,0.00041322,120]
[394043985,1763220329095,-1000.0,0.00041322,120]
[394043986,1763220329116,-1000.0,0.00041322,120]
[394043987,1763220329137,-1000.0,0.00041322,120]
[394043988,1763220329159,-1000.0,0.00041322,120]
[394043989,1763220329180,-1000.0,0.00041322,120]
[394043990,1763220329201,-1000.0,0.00041322,120]
[394043991,1763220329223,-1000.0,0.00041322,120]
[394043992,1763220329243,-1000.0,0.00041322,120]
[394043993,1763220329264,-1000.0,0.00041322,120]
[394043994,1763220329285,-1000.0,0.00041322,120]
[394043995,1763220329306,-1000.0,0.00041322,120]
[394043996,1763220329328,-1000.0,0.00041322,120]
[394043997,1763220329349,-1000.0,0.00041322,120]
[394043998,1763220329391,-186.47338028,0.000415,120]
[394043999,1763220329419,-270.74897035,0.000415,120]
[394044000,1763220329445,-164.79228216,0.000415,120]
[394044001,1763220329466,-380.80007256,0.000415,120]
[394044002,1763220329487,-301.46916948,0.000415,120]
[394044003,1763220329509,-305.33073678,0.000415,120]
[394044004,1763220329531,-1354.5443904,0.000415,120]
[394044005,1763220329552,-175.69927254,0.000415,120]
[394044006,1763220329577,-150.83,0.00041617,120]
[394044007,1763220329599,-635.34,0.00041618,120]
[394044008,1763220329623,-150.83,0.00041717,120]
[394044009,1763220329645,-635.34,0.00041718,120]
[394044010,1763220329669,-150.83,0.00041817,120]
[394044011,1763220329691,-635.34,0.00041818,120]
[394044012,1763220329712,-168.97305865,0.000419,120]
[394044013,1763220329735,-150.83,0.00041917,120]
[394044014,1763220329758,-635.34,0.00041918,120]
[394044015,1763220329780,-223.61531835,0.00041999,120]
[394044016,1763220329802,-503.51555374,0.00042,120]
[394044017,1763220329822,-622.92717712,0.00042,120]
[394044018,1763220329842,-396.56662413,0.00042,120]
[394044019,1763220329862,-169.3517502,0.00042,120]
[394044020,1763220329882,-186.25289397,0.00042,120]
[394044021,1763220329902,-423.34375228,0.00042,120]
[394044022,1763220329924,-200.0,0.00042,120]
[394044023,1763220329945,-478.96003305,0.00042,120]
[394044024,1763220333673,3322.048888,0.00041937,120]
[394044025,1763220335271,691.55869406,0.00041937,120]
[394044026,1763220336408,478.96003305,0.00041,120]
[394044027,1763220341677,164.79228215,0.000415,120]
[394044028,1763220352983,3560.75,0.000156,2]
[394044029,1763220353009,10000.01,0.000156,2]
[394044030,1763220353036,3579.53690017,0.000156,2]
[394044057,1763220371579,244.26458942,0.000415,120]
[394044061,1763220372484,1000.0,0.00042,120]
[394044063,1763220372980,1000.0,0.00041996,120]
[394044065,1763220373476,1000.0,0.00041992,120]
[394044068,1763220373986,1000.0,0.00041987,120]
[394044070,1763220374535,1000.0,0.00041983,120]
[394044075,1763220375078,1000.0,0.00041979,120]
[394044079,1763220375626,1000.0,0.00041975,120]
[394044080,1763220375864,1219.08995136,0.000415,120]
[394044083,1763220376359,1000.0,0.00041971,120]
[394044085,1763220376873,1000.0,0.00041966,120]
[394044086,1763220377378,1000.0,0.00041962,120]
[394044096,1763220385476,175.69927254,0.000415,120]
[394044097,1763220390114,166.66,0.00015051,2]
[394044098,1763220390317,166.66,0.00015368,2]
[394044099,1763220398366,186.47338028,0.000415,120]
[394044100,1763220400154,216.59917628,0.000415,120]
[394044101,1763220402712,326.2141274,0.000415,120]
[394044102,1763220406045,-166.66,0.00015685,2]
[394044103,1763220421165,-1042.34,0.0001572,2]
[394044122,1763220428135,300.0,0.000169,6]
[394044132,1763220433044,151.0,0.00041958,120]
[394044133,1763220439716,1000.0,0.00042,120]
[394044134,1763220440246,1000.0,0.00041995,120]
[394044135,1763220440742,1000.0,0.00041991,120]
[394044136,1763220441241,1000.0,0.00041986,120]
[394044137,1763220441730,1000.0,0.00041981,120]
[394044138,1763220442479,1000.0,0.00041977,120]
[394044139,1763220443199,1000.0,0.00041972,120]
[394044140,1763220443705,1000.0,0.00041967,120]
[394044141,1763220444213,1000.0,0.00041963,120]
[394044154,1763220506801,606.893,0.00042,120]
[394044164,1763220517580,8595.70466742,0.000409,120]
[394044178,1763220546553,213.25,0.00040998,120]
[394044179,1763220555139,158.73107563,0.00038586,120]
[394044180,1763220555418,158.73107563,0.00039069,120]
[394044181,1763220555793,158.73107563,0.00039551,120]
[394044182,1763220556090,158.73107563,0.00040033,120]
[394044183,1763220556359,158.73107563,0.00040516,120]
[394044184,1763220556662,158.73,0.00040998,120]
[394044199,1763220608725,-760.09,0.00015769,2]
[394044200,1763220618345,500.0,0.00016899,6]
[394044201,1763220619829,500.0,0.00015768,2]
[394044202,1763220629694,10778.71493573,0.00042,120]
[394044216,1763220632040,-200.0,0.00015806,2]
[394044217,1763220632051,-404.69868621,0.00015896,2]
[394044218,1763220632061,-195.0,0.00015896,2]
[394044219,1763220632072,-618.66,0.00015897,2]
[394044220,1763220632082,-426.86396715,0.00015995,2]
[394044221,1763220632134,-92.18603285,0.00015995,2]
[394044222,1763220632146,-166.66,0.00016001,2]
[394044223,1763220632157,-203.75,0.00016052,2]
[394044224,1763220632166,-143.89110248,0.00016106,2]
[394044225,1763220632178,-371.27889752,0.00016106,2]
[394044226,1763220632187,-250.0,0.00016264,2]
[394044227,1763220632198,-166.66,0.00016318,2]
[394044228,1763220632207,-200.0,0.00016375,2]
[394044229,1763220632217,-368.22,0.00016481,2]
[394044230,1763220632228,-166.66,0.00016635,2]
[394044231,1763220632237,-150.0,0.00016711,2]
[394044232,1763220632248,-237.0,0.00016718,2]
[394044233,1763220632262,-300.0,0.00016719,2]
[394044234,1763220632272,-1200.0,0.00016719,2]
[394044235,1763220632281,-300.0,0.00016719,2]
[394044236,1763220632290,-1243.59253532,0.0001672,2]
[394044237,1763220632301,-1324.49606468,0.0001672,2]
[394044238,1763220632311,-234.7044,0.0001672,2]
[394044239,1763220632320,-1000.0,0.0001672,2]
[394044240,1763220632331,-4075.8433,0.0001672,2]
[394044241,1763220632340,-20000.02,0.0001672,2]
[394044243,1763220632350,-2500.0,0.0001672,2]
[394044245,1763220632360,-6353.84329551,0.00016735,2]
[394044247,1763220632370,-180.76926308,0.00016735,2]
[394044249,1763220632379,-151.0,0.0001674,2]
[394044251,1763220632388,-151.0,0.0001674,2]
[394044253,1763220632397,-151.0,0.0001674,2]
[394044255,1763220632406,-151.0,0.0001674,2]
[394044257,1763220632416,-151.0,0.0001674,2]
[394044259,1763220632425,-151.0,0.0001674,2]
[394044261,1763220632434,-151.0,0.0001674,2]
[394044263,1763220632445,-151.0,0.0001674,2]
[394044265,1763220632455,-151.0,0.0001674,2]
[394044268,1763220632464,-151.0,0.0001674,2]
[394044270,1763220632473,-151.0,0.0001674,2]
[394044272,1763220632483,-151.0,0.0001674,2]
[394044274,1763220632493,-151.0,0.0001674,2]
[394044276,1763220632502,-151.0,0.0001674,2]
[394044278,1763220632511,-151.0,0.0001674,2]
[394044280,1763220632520,-151.0,0.0001674,2]
[394044282,1763220632529,-151.0,0.0001674,2]
[394044283,1763220632538,-151.0,0.0001674,2]
[394044284,1763220632547,-151.0,0.0001674,2]
[394044285,1763220632556,-151.0,0.0001674,2]
[394044286,1763220632565,-7888.01393535,0.0001675,2]
[394044287,1763220632576,-1276.17863191,0.000168,2]
[394044288,1763220632586,-151.0,0.0001681,2]
[394044289,1763220632596,-151.0,0.0001681,2]
[394044290,1763220632606,-151.0,0.0001681,2]
[394044291,1763220632616,-151.0,0.0001681,2]
[394044292,1763220632626,-151.0,0.0001681,2]
[394044293,1763220632635,-151.0,0.0001681,2]
[394044294,1763220632645,-151.0,0.0001681,2]
[394044295,1763220632655,-151.0,0.0001681,2]
[394044297,1763220632665,-151.0,0.0001681,2]
[394044299,1763220632674,-151.0,0.0001681,2]
[394044301,1763220632684,-151.0,0.0001681,2]
[394044303,1763220632693,-151.0,0.0001681,2]
[394044305,1763220632703,-151.0,0.0001681,2]
[394044307,1763220632713,-151.0,0.0001681,2]
[394044309,1763220632723,-151.0,0.0001681,2]
[394044311,1763220632732,-151.0,0.0001681,2]
[394044313,1763220632741,-208.7547261,0.0001681,2]
[394044315,1763220632750,-901.9,0.0001681,2]
[394044317,1763220632759,-500.0,0.00016819,2]
[394044319,1763220632767,-500.0,0.00016819,2]
[394044321,1763220632777,-500.0,0.00016819,2]
[394044323,1763220632786,-500.0,0.00016819,2]
[394044324,1763220632795,-500.0,0.00016819,2]
[394044325,1763220632804,-500.0,0.00016819,2]
[394044326,1763220632814,-500.0,0.00016819,2]
[394044327,1763220632823,-376.87439278,0.00016819,2]
[394044328,1763220632833,-166.88,0.00016819,2]
[394044329,1763220632842,-202.44003714,0.00016819,2]
[394044330,1763220632852,-167.47287897,0.00016819,2]
[394044331,1763220632862,-228.75419922,0.00016819,2]
[394044332,1763220633042,-500.0,0.00016819,2]
[394044333,1763220633059,-500.0,0.00016819,2]
[394044334,1763220633069,-500.0,0.00016819,2]
[394044335,1763220633078,-572.82387158,0.00016819,2]
[394044336,1763220633087,-553.04656163,0.00016819,2]
[394044337,1763220633097,-447.34378738,0.00016819,2]
[394044338,1763220633106,-500.0,0.00016819,2]
[394044339,1763220633115,-848.639,0.00016819,2]
[394044340,1763220633124,-222.2113773,0.00016858,2]
[394044341,1763220633134,-555.71241141,0.00016873,2]
[394044342,1763220633143,-500.0,0.00016873,2]
[394044343,1763220633159,-500.0,0.00016873,2]
[394044344,1763220633169,-266.74,0.00016916,2]
[394044345,1763220633178,-500.0,0.00016919,2]
[394044346,1763220633187,-268.28034498,0.0001692,2]
[394044347,1763220633198,-9999.99,0.00016922,2]
[394044348,1763220633207,-4826.04,0.00016922,2]
[394044349,1763220633217,-3093.34,0.00016922,2]
[394044350,1763220633227,-150.99,0.00016922,2]
[394044351,1763220633236,-203.75,0.00016944,2]
[394044352,1763220633245,-152.96,0.00016957,2]
[394044353,1763220633255,-13106.65250626,0.00016967,2]
[394044354,1763220633267,-1323.62141765,0.00016967,2]
[394044355,1763220633278,-1009.87494404,0.00016967,2]
[394044356,1763220633293,-33755.42908128,0.00016967,2]
[394044357,1763220633305,-46092.77941645,0.00016967,2]
[394044358,1763220633335,-180.18772293,0.00016966,2]
[394044359,1763220633345,-319.81227707,0.00016966,2]
[394044360,1763220633357,-59.09364123,0.00016966,2]
[394044361,1763220633366,-212.45627232,0.00016967,2]
[394044379,1763220638074,-21762.41950126,0.00016967,2]
[394044381,1763220638087,-2120.64194453,0.00016967,2]
[394044383,1763220638141,-2381.56754834,0.00016967,2]
[394044384,1763220638157,-1006.2910037,0.00016967,2]
[394044385,1763220638168,-5924.34735,0.00016967,2]
[394044386,1763220638179,-10155.6,0.00016967,2]
[394044387,1763220638191,-22818.0,0.00016967,2]
[394044388,1763220638203,-2149.884,0.00016967,2]
[394044389,1763220638214,-73348.01469881,0.00016967,2]
[394044390,1763220638227,-5861.0,0.00016967,2]
[394044391,1763220638239,-750.51407599,0.00016967,2]
[394044403,1763220640001,-2061.77960872,0.00016967,2]
[394044404,1763220640014,-849.92660346,0.00016967,2]
[394044405,1763220640118,-1406.38253219,0.00016967,2]
[394044406,1763220640130,-569.71068411,0.00016967,2]
[394044408,1763220640143,-452.19087388,0.00016967,2]
[394044410,1763220640159,-276.99747719,0.00016967,2]
[394044414,1763220640242,-34217.26314142,0.00016967,2]
[394044415,1763220640252,-18072.2721518,0.00016967,2]
[394044416,1763220640261,-4309.5530625,0.00016967,2]
[394044417,1763220640270,-312.3880504,0.00016967,2]
[394044418,1763220640281,-151.0,0.00016967,2]
[394044419,1763220640290,-151.0,0.00016967,2]
[394044420,1763220640301,-151.0,0.00016967,2]
[394044421,1763220640312,-220.657701,0.00016967,2]
[394044422,1763220640322,-220.657701,0.00016967,2]
[394044423,1763220640336,-151.0,0.00016967,2]
[394044424,1763220640347,-151.0,0.00016967,2]
[394044425,1763220640358,-151.0,0.00016967,2]
[394044426,1763220640368,-151.0,0.00016967,2]
[394044427,1763220640378,-151.0,0.00016967,2]
[394044428,1763220640388,-151.0,0.00016967,2]
[394044429,1763220640399,-501.38726067,0.00016973,2]
[394044430,1763220640410,-500.0,0.00016973,2]
[394044431,1763220640421,-645.28559714,0.00016973,2]
[394044432,1763220640431,-500.0,0.00016973,2]
[394044434,1763220640441,-500.0,0.00016973,2]
[394044435,1763220640451,-500.0,0.00016973,2]
[394044436,1763220640462,-161.06747613,0.00016973,2]
[394044437,1763220640472,-500.0,0.00016973,2]
[394044439,1763220640482,-500.0,0.00016973,2]
[394044440,1763220640491,-157.108984,0.00016973,2]
[394044441,1763220640501,-495.125653,0.00016973,2]
[394044442,1763220640511,-495.125653,0.00016973,2]
[394044443,1763220640520,-999.533846,0.00016973,2]
[394044444,1763220640530,-495.125653,0.00016973,2]
[394044445,1763220640540,-495.125653,0.00016973,2]
[394044446,1763220640550,-999.533846,0.00016973,2]
[394044447,1763220640560,-999.533846,0.00016973,2]
[394044448,1763220640569,-999.533846,0.00016973,2]
[394044449,1763220640579,-151.0,0.00016973,2]
[394044450,1763220640593,-151.0,0.00016973,2]
[394044451,1763220640603,-151.0,0.00016973,2]
[394044452,1763220640612,-151.0,0.00016973,2]
[394044453,1763220640622,-152.96,0.0001699,2]
[394044454,1763220640631,-55647.51487001,0.00017,2]
[394044455,1763220640640,-151.0,0.00017,2]
[394044456,1763220640650,-151.0,0.00017,2]
[394044457,1763220640659,-151.0,0.00017,2]
[394044458,1763220640669,-178.148717,0.00017,2]
[394044459,1763220640678,-152.96,0.0001701,2]
[394044460,1763220640688,-151.0,0.00017017,2]
[394044461,1763220640697,-300.0,0.00017019,2]
[394044462,1763220640706,-140859.2,0.0001702,2]
[394044463,1763220640715,-495.125653,0.0001702,2]
[394044464,1763220640725,-495.125653,0.0001702,2]
[394044465,1763220640734,-495.125653,0.0001702,2]
[394044466,1763220640744,-999.533846,0.0001702,2]
[394044467,1763220640753,-495.125653,0.0001702,2]
[394044468,1763220640762,-999.533846,0.0001702,2]
[394044469,1763220640771,-999.533846,0.0001702,2]
[394044470,1763220640780,-999.533846,0.0001702,2]
[394044471,1763220640789,-151.0,0.0001702,2]
[394044472,1763220640798,-220.657701,0.0001702,2]
[394044473,1763220640807,-220.657701,0.0001702,2]
[394044474,1763220640818,-151.0,0.0001702,2]
[394044475,1763220640827,-151.0,0.0001702,2]
[394044476,1763220640840,-151.0,0.0001702,2]
[394044477,1763220640850,-2791.19036035,0.00017045,2]
[394044478,1763220640859,-607.52246125,0.00017073,2]
[394044479,1763220640868,-501.78304251,0.00017073,2]
[394044480,1763220640877,-500.0,0.00017073,2]
[394044481,1763220640887,-500.63239737,0.00017073,2]
[394044482,1763220640896,-501.05866641,0.00017073,2]
[394044483,1763220640906,-500.0,0.00017073,2]
[394044484,1763220640915,-500.0,0.00017073,2]
[394044485,1763220640925,-500.0,0.00017073,2]
[394044486,1763220640934,-500.0,0.00017073,2]
[394044487,1763220640943,-501.49845435,0.00017073,2]
[394044488,1763220640952,-504.00443964,0.00017073,2]
[394044489,1763220640962,-502.00096171,0.00017073,2]
[394044490,1763220640971,-901.9,0.00017084,2]
[394044491,1763220640980,-720.0,0.0001732,2]
[394044492,1763220640990,-720.0,0.00017333,2]
[394044493,1763220640999,-250.0,0.00017346,2]
[394044494,1763220641007,-901.9,0.00017358,2]
[394044495,1763220641016,-720.0,0.00017382,2]
[394044496,1763220641026,-1000.0,0.00017421,2]
[394044497,1763220641035,-503.0,0.00017425,2]
[394044498,1763220641045,-720.0,0.0001745,2]
[394044499,1763220641054,-720.0,0.00017453,2]
[394044500,1763220641063,-720.0,0.00017468,2]
[394044501,1763220641072,-250.0,0.00017486,2]
[394044502,1763220641082,-195.0,0.00017486,2]
[394044503,1763220641091,-200.0,0.00017486,2]
[394044504,1763220641101,-393.47916949,0.00017486,2]
[394044505,1763220641110,-195.0,0.00017486,2]
[394044506,1763220641119,-432.78038,0.00017521,2]
[394044507,1763220641128,-500.0,0.00017521,2]
[394044508,1763220641137,-1000.0,0.00017521,2]
[394044509,1763220641151,-506.20609274,0.00017521,2]
[394044510,1763220641161,-502.22144577,0.00017521,2]
[394044511,1763220641170,-803.68058232,0.00017521,2]
[394044512,1763220641179,-720.0,0.00017531,2]
[394044513,1763220641187,-720.0,0.00017559,2]
[394044514,1763220641198,-1131.0,0.00017563,2]
[394044515,1763220641206,-720.0,0.00017573,2]
[394044516,1763220641215,-495.125653,0.00017598,2]
[394044517,1763220641224,-495.125653,0.00017598,2]
[394044518,1763220641234,-999.533846,0.00017598,2]
[394044519,1763220641244,-495.125653,0.00017598,2]
[394044520,1763220641254,-495.125653,0.00017598,2]
[394044521,1763220641263,-999.533846,0.00017598,2]
[394044522,1763220641272,-999.533846,0.00017598,2]
[394044523,1763220641282,-999.533846,0.00017598,2]
[394044524,1763220641291,-151.0,0.00017598,2]
[394044525,1763220641301,-151.0,0.00017598,2]
[394044526,1763220641310,-151.0,0.00017598,2]
[394044527,1763220641320,-720.0,0.00017598,2]
[394044528,1763220641331,-600.0,0.000176,6]
[394044529,1763220641342,-331.61580868,0.00017621,2]
[394044530,1763220641352,-943.44977622,0.00017621,2]
[394044531,1763220641362,-1000.0,0.00017621,2]
[394044532,1763220641373,-1000.0,0.00017621,2]
[394044533,1763220641382,-6353.84329546,0.00017625,2]
[394044534,1763220641392,-901.9,0.00017632,2]
[394044535,1763220641402,-7888.01393533,0.00017639,2]
[394044536,1763220641412,-151.0,0.00017639,2]
[394044537,1763220641422,-220.657701,0.00017639,2]
[394044538,1763220641432,-220.657701,0.00017639,2]
[394044539,1763220641442,-1000.0,0.000177,6]
[394044540,1763220641452,-720.0,0.0001772,2]
[394044541,1763220641462,-500.0,0.00017785,2]
[394044542,1763220641471,-9427.04662494,0.00017785,2]
[394044543,1763220641482,-684.0028158,0.00017788,2]
[394044544,1763220641492,-151.0,0.00017788,2]
[394044545,1763220641501,-1300.0,0.000178,6]
[394044546,1763220641510,-500.0,0.00017808,2]
[394044547,1763220641521,-500.0,0.00017808,2]
[394044548,1763220641530,-366.97143755,0.00017808,2]
[394044549,1763220641540,-203.75,0.00017836,2]
[394044550,1763220641549,-720.0,0.00017839,2]
[394044551,1763220641559,-300.0,0.0001785,2]
[394044552,1763220641568,-495.125653,0.0001785,2]
[394044553,1763220641578,-495.125653,0.0001785,2]
[394044554,1763220641590,-495.125653,0.0001785,2]
[394044555,1763220641599,-999.533846,0.0001785,2]
[394044556,1763220641609,-495.125653,0.0001785,2]
[394044557,1763220641618,-999.533846,0.0001785,2]
[394044558,1763220641627,-999.533846,0.0001785,2]
[394044559,1763220641636,-999.533846,0.0001785,2]
[394044560,1763220641645,-210.02396214,0.00017887,2]
[394044561,1763220641654,-500.0,0.00017887,2]
[394044562,1763220641663,-500.0,0.00017899,2]
[394044563,1763220641673,-1700.0,0.000179,6]
[394044564,1763220641682,-901.9,0.00017905,2]
[394044565,1763220641691,-720.0,0.00017925,2]
[394044566,1763220641701,-2512.0,0.00017935,2]
[394044567,1763220641710,-163.85,0.00017937,2]
[394044568,1763220641719,-720.0,0.00017945,2]
[394044569,1763220641728,-500.0,0.00017973,2]
[394044570,1763220641737,-500.0,0.00017973,2]
[394044571,1763220641746,-500.0,0.00017973,2]
[394044572,1763220641755,-2512.0,0.00017981,2]
[394044573,1763220641764,-199.85914554,0.0001799,2]
[394044574,1763220641773,-199.85914554,0.0001799,2]
[394044575,1763220641782,-500.0,0.00017999,2]
[394044576,1763220641792,-500.0,0.00017999,2]
[394044577,1763220641800,-513.33825688,0.00017999,2]
[394044578,1763220641810,-500.0,0.00017999,2]
[394044579,1763220641819,-500.0,0.00017999,2]
[394044580,1763220641829,-500.0,0.00017999,2]
[394044581,1763220641837,-500.0,0.00017999,2]
[394044582,1763220641847,-500.0,0.00017999,2]
[394044583,1763220641856,-500.0,0.00017999,2]
[394044584,1763220641866,-525.92146982,0.00017999,2]
[394044585,1763220641875,-500.0,0.00017999,2]
[394044586,1763220641884,-391.38178285,0.00017999,2]
[394044587,1763220641893,-300.0,0.00017999,2]
[394044588,1763220641902,-151.0,0.00017999,2]
[394044589,1763220641911,-220.657701,0.00017999,2]
[394044590,1763220641922,-220.657701,0.00017999,2]
[394044591,1763220641931,-220.657701,0.00017999,2]
[394044592,1763220641940,-27570.58410443,0.00018,2]
[394044627,1763220648072,-430.76382142,0.00016921,2]
[394044628,1763220648081,-115512.46420424,0.00018,2]
[394044629,1763220648210,-500.0,0.00018,2]
[394044630,1763220648222,-15929.99999973,0.00018,2]
[394044634,1763220648326,-151.0,0.00016967,2]
[394044636,1763220648336,-1349.0,0.00018,2]
[394044639,1763220656530,164.79228216,0.000415,120]
[394044655,1763220683836,999.0,0.00017368,3]
[394044656,1763220686483,195.41167154,0.000415,120]
[394044657,1763220694523,1097.18095622,0.000415,120]
[394044658,1763220699489,175.69927254,0.000415,120]
[394044659,1763220718312,2000.0,0.00042,120]
[394044660,1763220718672,2000.0,0.00042,120]
[394044661,1763220718976,2000.0,0.00042,120]
[394044662,1763220719280,2000.0,0.00042,120]
[394044663,1763220719584,2000.0,0.00042,120]
[394044664,1763220719652,173.27934103,0.000415,120]
[394044665,1763220719891,2000.0,0.00042,120]
[394044666,1763220720209,2000.0,0.00042,120]
[394044667,1763220720470,2000.0,0.00042,120]
[394044668,1763220720827,2000.0,0.00042,120]
[394044669,1763220721333,2000.0,0.00042,120]
[394044670,1763220721547,260.97130192,0.000415,120]
[394044695,1763220791176,1846.23488736,0.00042,120]
[394044696,1763220802223,200.0,0.00041097,120]
[394044697,1763220837561,165.0,0.00042,120]
[394044713,1763220970750,164.79228215,0.000415,120]
[394044714,1763221003767,195.41167153,0.000415,120]
[394044715,1763221015702,175.69927253,0.000415,120]
[394044716,1763221022972,1974.92572119,0.000415,120]
[394044717,1763221036351,173.27934103,0.000415,120]
[394044718,1763221037294,208.77704154,0.000415,120]
[394044719,1763221206723,720.0,0.00042,120]
[394044720,1763221320157,195.41167154,0.000415,120]
[394044721,1763221330801,175.69927254,0.000415,120]
[394044722,1763221341195,1579.94057696,0.000415,120]
[394044723,1763221351598,173.27934102,0.000415,120]
[394044724,1763221354779,167.02163323,0.000415,120]
[394044725,1763221380391,10231.7,0.00042,120]
[394044726,1763221402725,200.0,0.00041097,120]
[394044727,1763221403269,720.0,0.00042,120]
[394044732,1763221635543,195.41167153,0.000415,120]
[394044734,1763221655849,1263.95246156,0.000415,120]
[394044735,1763221663846,34940.0,0.00042,120]
[394044736,1763221667318,173.27934103,0.000415,120]
[394044737,1763221674177,167.02163323,0.000415,120]
[394044738,1763221697133,500.0,0.00041324,120]
[394044739,1763221746284,198.02296838,0.0004065,120]
[394044740,1763221746762,198.02,0.00040998,120]
[394044741,1763221749006,174.15073037,0.0004065,120]
[394044742,1763221749282,174.15073037,0.0004065,120]
[394044743,1763221749586,174.15073037,0.0004065,120]
[394044744,1763221749869,174.15073037,0.0004065,120]
[394044745,1763221750142,174.15,0.0004065,120]
[394044746,1763221750578,156.289117,0.0004065,120]
[394044747,1763221750727,156.289117,0.0004065,120]
[394044748,1763221751173,156.289117,0.0004065,120]
[394044749,1763221751474,156.289117,0.0004065,120]
[394044750,1763221751761,156.289117,0.0004065,120]
[394044751,1763221752137,156.289117,0.0004065,120]
[394044752,1763221752491,156.289117,0.0004065,120]
[394044753,1763221752771,156.289117,0.0004065,120]
[394044754,1763221753180,156.289117,0.0004065,120]
[394044755,1763221753454,156.289117,0.0004065,120]
[394044756,1763221753770,156.289117,0.0004065,120]
[394044757,1763221754306,156.289117,0.0004065,120]
[394044758,1763221754619,156.28,0.00040998,120]
[394044833,1763221832164,-300.0,0.00016619,2]
[394044836,1763221832174,-106.78395338,0.00016619,2]
[394044837,1763221832211,-1093.21604662,0.00016619,2]
[394044838,1763221832221,-300.0,0.00016619,2]
[394044839,1763221832230,-300.0,0.00016619,2]
[394044840,1763221832240,-250.0,0.00016619,2]
[394044841,1763221832249,-1292.84395338,0.0001662,2]
[394044842,1763221832265,-557.83337001,0.0001662,2]
[394044843,1763221832274,-118.46046262,0.0001662,2]
[394044844,1763221832354,-1732.21686077,0.0001662,2]
[394044845,1763221832365,-1265.826,0.0001662,2]
[394044846,1763221832374,-1276.43947338,0.0001662,2]
[394044847,1763221832386,-2512.17672662,0.0001662,2]
[394044848,1763221832397,-500.0,0.00016635,2]
[394044849,1763221832406,-300.0,0.00016643,2]